Cogmind - Beta 12 @@@ ROGUE MODE // 2023.05.31 @ 22:58:27 Player: maxwell Result: Destroyed by G-47 Trooper with Particle Gun Performance ------------- Evolutions (0) 0 Regions Visited (2) 400 Robots Destroyed (22) 110 Value Destroyed (623) 623 Prototype IDs (0) 0 Alien Tech Used (0) 0 Bonus (0) 0 TOTAL SCORE: 1133 Bonus ------- None Cogmind --------- Core Integrity 0/250 Matter 244/300 Energy 250/250 System Corruption 0% Temperature Cool (9) Movement Treading (240) Ox1 Location -10/Mines Parts ------- > --- POWER (1) -------- Ion Engine > --- PROPULSION (2) --- Light Treads Light Treads > --- UTILITY (2) ------ Improved Heat Sink High-capacity Storage Unit > --- WEAPON (2) ------- Heavy Assault Rifle Heavy Assault Rifle > --- INVENTORY (20) --- Light Treads Light Treads Wheel Compact Wheel Small Storage Unit Shield Generator Shield Generator Shield Generator Shield Generator Heavy Assault Rifle EMP Blaster EMP Blaster EMP Blaster EMP Blaster Peak State ------------ > --- POWER ------------ Ion Engine > --- PROPULSION ------- Aluminum Leg Aluminum Leg > --- UTILITY ---------- Improved Heat Sink High-capacity Storage Unit > --- WEAPON ----------- Heavy Assault Rifle Heavy Assault Rifle > --- INVENTORY -------- Light Treads Light Treads Light Treads Light Treads Wheel Compact Wheel Small Storage Unit EM Pulse Gun Heavy Assault Rifle Heavy Assault Rifle EMP Blaster EMP Blaster EMP Blaster EMP Blaster [Rating: 13] Favorites ----------- Power Ion Engine Engine Ion Engine Propulsion Aluminum Leg Treads Light Treads Leg Aluminum Leg Utility High-capacity Storage Unit Device Improved Heat Sink Storage High-capacity Storage Unit Weapon Heavy Assault Rifle Energy Gun EM Pulse Gun Ballistic Gun Heavy Assault Rifle Build | -11 -10 -10 ------- Run | Jun Mat Min Slots Evolved . | . . . Power . | . . . Propulsion . | . . . Utility . | . . . Weapon . | . . . Parts Attached 12 | . 10 2 Power 2 | . 2 . Engine 2 | . 2 . Core . | . . . Reactor . | . . . Propulsion 2 | . 2 . Treads 2 | . 2 . Leg . | . . . Wheel . | . . . Hover . | . . . Flight . | . . . Utility 3 | . 3 . Device 2 | . 2 . Storage 1 | . 1 . Processor . | . . . Hackware . | . . . Protection . | . . . Artifact . | . . . Weapon 5 | . 3 2 Energy Gun 1 | . . 1 Energy Cannon . | . . . Ballistic Gun 4 | . 3 1 Ballistic Cannon . | . . . Launcher . | . . . Special Weapon . | . . . Impact Weapon . | . . . Slashing Weapon . | . . . Piercing Weapon . | . . . Special Melee Weapon . | . . . Unidentified Prototypes . | . . . Parts Lost 2 | . 1 1 Power 1 | . 1 . Propulsion . | . . . Utility . | . . . Weapon 1 | . . 1 Highest Loss Streak 1 | . 1 1 To Critical Strikes . | . . . Average Slot Usage (%) 97 | . 95 100 Engine 13 | . 13 14 Treads 10 | . . 28 Leg 17 | . 28 . Device 11 | . 10 14 Storage 14 | . 14 14 Energy Gun 1 | . 1 . Ballistic Gun 26 | . 26 27 Naked Turns . | . . . Heaviest Build 52 | 11 52 52 Greatest Support 40 | 20 40 40 Greatest Overweight (x) 2 | . 2 1 Average Overweight (x) 1 | . 1 1 Largest Inventory Capacity 20 | . 20 20 Average Capacity 17 | . 16 20 Most Carried 18 | . 18 16 Average Carried 12 | . 10 15 Final Capacity 20 | 8 20 20 Final Carried 16 | 6 16 14 Class Distribution -------------------- 100% | Mutant Dominant Class ---------------- Mutant | -10/Materials Mutant | -10/Mines Resources | -11 -10 -10 ----------- Run | Jun Mat Min Matter Collected 550 | 200 185 165 Remotely . | . . . Salvage Created 712 | . 542 170 Parts 45 | . 31 14 Haulers Intercepted 1 | . 1 . Recyclers Shooed . | . . . Parts Field Recycled . | . . . Retrieved Matter . | . . . Parts Self-Destructed . | . . . Prevented . | . . . Kills | -11 -10 -10 ------- Run | Jun Mat Min Combat Hostiles Destroyed 20 | . 12 8 Guns 20 | . 12 8 Classes Destroyed 4 | . 3 1 Hauler 1 | . 1 . Watcher 1 | . 1 . Swarmer 6 | . . 6 Grunt 14 | . 12 2 Best Kill Streak 3 | . 3 3 Combat Bots Only 3 | . 3 3 Max Kills in Single Turn 1 | . 1 1 Gunslinging . | . . . Exploded . | . . . Melee . | . . . Uniques/NPCs Destroyed . | . . . Combat | -11 -10 -10 -------- Run | Jun Mat Min Damage Taken 993 | . 512 481 Core 255 | . 116 139 Absorbed by Shields . | . . . Core Remaining (%) 100 | 100 . . Volleys Fired 73 | . 47 26 Largest 2 | . 2 2 Hottest 63 | . 60 63 Shots Fired 144 | . 94 50 Gun 144 | . 94 50 Cannon . | . . . Launcher . | . . . Special . | . . . Kinetic 139 | . 90 49 Thermal . | . . . Explosive . | . . . Electromagnetic 5 | . 4 1 Robot Hit Streak 11 | . 6 11 Robot Miss Streak 4 | . 3 4 Penetration Max . | . . . Secondary Targets 8 | . 4 4 Max Gunslinging Chain 1 | . 1 1 Shots Hit Robots 92 | . 64 28 Core Hits 40 | . 30 10 Critical Kills . | . . . Critical Parts Destroyed 1 | . 1 . Critical Strikes 1 | . 1 . Destroy 1 | . 1 . Melee Attacks . | . . . Impact . | . . . Slashing . | . . . Piercing . | . . . Sneak Attacks . | . . . Combat Hostiles . | . . . Follow-up Attacks . | . . . Damage Inflicted 1135 | . 703 432 Guns 1125 | . 703 422 Cannons . | . . . Explosions . | . . . Melee . | . . . Ramming 10 | . . 10 Kinetic 1088 | . 666 422 Thermal . | . . . Explosive . | . . . Electromagnetic 37 | . 37 . Impact . | . . . Slashing . | . . . Piercing . | . . . Highest Corruption . | . . . Average Corruption . | . . . Corruption Purged . | . . . Corruption Blocked . | . . . Overload Shots . | . . . Overflow Damage . | . . . Projectiles . | . . . Explosions . | . . . Melee . | . . . Knockbacks 1 | . . 1 Impact 1 | . . 1 Kinetic . | . . . Secondary . | . . . Self-Inflicted Damage . | . . . Shots . | . . . Rammed 2 | . . 2 Targets Rammed 2 | . . 2 Kicked . | . . . Crushed . | . . . Highest Temperature 24 | . 24 . Average Temperature 10 | . 10 . Received Heat Transfer 426 | . 300 126 Siege Activations . | . . . Robots Corrupted . | . . . Combat Hostiles . | . . . Parts Fried . | . . . Impact Corruptions . | . . . Robots Melted . | . . . Combat Hostiles . | . . . Parts Melted . | . . . Heat Transferred . | . . . Parts Sabotaged . | . . . Parts Stolen . | . . . Parts Stripped . | . . . Power Chain Reactions . | . . . Missiles Intercepted . | . . . Alert | -11 -10 -10 ------- Run | Jun Mat Min Peak Influence 210 | . 210 183 Initial 48 | . . 48 Average 82 | . 76 92 Maximum Alert Level 1 | . 1 . Low Security (%) 96 | . 94 100 Level 1 3 | . 5 . Level 2 . | . . . Level 3 . | . . . Level 4 . | . . . Level 5 . | . . . High Security . | . . . Max Security . | . . . Squads Dispatched 5 | . 5 . Investigation 4 | . 4 . Extermination . | . . . Reinforcement 1 | . 1 . Assault . | . . . Garrison . | . . . Intercept . | . . . Searches Triggered . | . . . Construction Impeded . | . . . Haulers Reinforced . | . . . Active Scanning Responses . | . . . Cargo Convoy Interrupts . | . . . Stealth | -11 -10 -10 --------- Run | Jun Mat Min Distress Signals . | . . . Communications Jammed . | . . . Distress Signals . | . . . Times Spotted 25 | . 15 10 Peak Tracking Total 4 | . 4 3 Tactical Retreats . | . . . Traps | -11 -10 -10 ------- Run | Jun Mat Min Traps Triggered 1 | . 1 . Indirectly . | . . . Trap Hack Attempts . | . . . Triggered . | . . . Disarmed . | . . . Reprogrammed . | . . . Reused . | . . . Traps Extracted . | . . . Installed . | . . . Triggered 2 | . 2 . Machines | -11 -10 -10 ---------- Run | Jun Mat Min Machines Disabled 3 | . 1 2 Max in Single Turn 1 | . 1 1 Machines Repaired . | . . . Machines Sabotaged . | . . . Overloaded Fab Kills . | . . . Hacking | -11 -10 -10 --------- Run | Jun Mat Min Machines Accessed . | . . . Terminals . | . . . Fabricators . | . . . Repair Stations . | . . . Recycling Units . | . . . Scanalyzers . | . . . Garrison Access . | . . . Total Hacks . | . . . Successful . | . . . Failed . | . . . Catastrophic . | . . . Database Lockouts . | . . . Manual . | . . . Terminals . | . . . Fabricators . | . . . Repair Stations . | . . . Recycling Units . | . . . Scanalyzers . | . . . Garrison Access . | . . . Terminal Hacks . | . . . Fabricator Hacks . | . . . Repair Station Hacks . | . . . Recycling Unit Hacks . | . . . Scanalyzer . | . . . Garrison Access Hacks . | . . . Unauthorized Hacks . | . . . Terminals . | . . . Fabricators . | . . . Repair Stations . | . . . Recycling Units . | . . . Scanalyzers . | . . . Garrison Access . | . . . Data Cores Recovered . | . . . Used . | . . . Hacking Detections . | . . . Full Trace Events . | . . . Feedback Events . | . . . Feedback Blocked . | . . . Robot Schematics Acquired . | . . . Robots Built . | . . . Authchips . | . . . Time . | . . . Total Robot Build Rating . | . . . Part Schematics Acquired . | . . . Parts Built . | . . . Authchips . | . . . Time . | . . . Total Part Build Rating . | . . . Parts Repaired . | . . . Time . | . . . Parts Recycled . | . . . Recycled Matter . | . . . Retrieved Matter . | . . . Retrieved Components . | . . . Parts Scanalyzed . | . . . Part Schematics Acquired . | . . . Parts Damaged . | . . . Bothacking | -11 -10 -10 ------------ Run | Jun Mat Min Used RIF Installer . | . . . Robots Hacked . | . . . Non-combat . | . . . Combat . | . . . Robot Hacks Applied . | . . . Relay Couplers Released . | . . . Fabnet Peak Effective % . | . . . Robots Rewired . | . . . Allies Hacked . | . . . Hacks Repelled . | . . . Allies | -11 -10 -10 -------- Run | Jun Mat Min Total Allies . | . . . Largest Group . | . . . Highest-Rated Group . | . . . Highest-Rated Ally . | . . . Total Orders . | . . . Ally Attacks . | . . . Total Damage . | . . . Kills . | . . . Allies Corrupted . | . . . Allies Melted . | . . . Intel | -11 -10 -10 ------- Run | Jun Mat Min Robot Analysis Total . | . . . Derelict Logs Recovered 1 | . . 1 Drone Launches . | . . . Drone Recoveries . | . . . Exploration | -11 -10 -10 ------------- Run | Jun Mat Min Turns Passed 1715 | . 1078 637 Spaces Moved 681 | 1 450 230 Core . | . . . Treads 232 | . 2 230 Legs 449 | 1 448 . Wheels . | . . . Hover . | . . . Flight . | . . . Fastest Speed 120 | 120 120 240 Average Speed 214 | 120 201 240 Slowest Speed 260 | 120 260 240 Overloaded Moves . | . . . Propulsion Burnouts . | . . . Robots Hopped . | . . . Cave-ins Triggered . | . . . Exploration Rate (%) 50 | 2 87 63 Regions Visited 2 Branch Regions 1 Pre-discovered Areas . | . . . Known Exits Taken . | . . . Unknown Exits Taken 2 | 1 1 . Scrap Searched 2 | . . 2 Spaces Dug . | . . . Terrain Destroyed . | . . . Melee . | . . . Projectile . | . . . AOE . | . . . Terrain Rammed . | . . . Walls Destroyed . | . . . Machines Disabled . | . . . Actions | -11 -10 -10 --------- Run | Jun Mat Min Total 803 | . 539 264 Wait 17 | . 14 3 Move 679 | . 449 230 Hop . | . . . Pick Up 12 | . 12 . Fast Attach 5 | . 5 . Attach 6 | . 4 2 Detach 2 | . 2 . Swap 1 | . 1 . Drop 6 | . 5 1 Fire 73 | . 47 26 Melee . | . . . Ram . | . . . Kick . | . . . Crush 2 | . . 2 Escape Stasis . | . . . Rewire . | . . . Trap . | . . . Miscellaneous . | . . . Route ------- -11/Junkyard -10/Materials (discovered 4 exits: [*Mat x2] / [*Min x2]) -10/Mines (discovered 2 exits: [*Mat x2]) History --------- Turn | Location | Event 1 | -11/Junkyard | Discovered new exit (range 0) 1 | -11/Junkyard | Entered Materials 176 | -10/Materials | Discovered new exit (range 13) 322 | -10/Materials | Build established: Mutant 376 | -10/Materials | Discovered new exit (range 15) 618 | -10/Materials | Discovered new exit (range 16) 947 | -10/Materials | Discovered new exit (range 15) 1079 | -10/Materials | Entered Mines 1083 | -10/Mines | Met a Derelict bent on vengeance 1089 | -10/Mines | Core integrity fell below 50% 1204 | -10/Mines | Learned 4 Materials zone layouts 1330 | -10/Mines | Discovered new exit (range 3) 1640 | -10/Mines | Discovered new exit (range 14) 1662 | -10/Mines | Core integrity fell below 20% 1716 | -10/Mines | Destroyed by G-47 Trooper with Particle Gun Last Messages --------------- 01496_ K-01 Serf cleans the Plasma Injector. 01549_ Searching scrap... 01549_ Found Assault Rifle. 01549_ Found Lrg. Matter Pod. 01549_ Found 13 Matter. 01550_ Acquired 13 matter. 01565_ Slammed into T-07 Excavator. 01565_ T-07 Excavator knocked back. 01640_ EXIT=FOUND 01641_ K-01 Serf cleans the Core Extractor. 01645_ S-10 Pest destroyed. 01645_ Switching to secondary target: S-10 Pest. 01647_ K-01 Serf cleans the Core Extractor. 01651_ Destroyed Flight Unit. 01652_ Hvy. Assault Rifle destroyed. 01662_ Dropped EM Pulse Gun. 01664_ S-10 Pest destroyed. 01670_ Acquired 13 matter. 01675_ Acquired 15 matter. 01706_ Core Extractor disabled. Map ----- +----------------------------------------------------+ | ??????????????### """ #????????????????????? | | ?????????????## """ ##???????????????????? | | ?????????????# #???????????????????? | | ?????????????# #???????????????????? | | ?????????????# ### ##???????????????????? | | ?????????????# ##?######????????????????????? | | ?????????????# ##????????????????????????????? | | ?????????????## ###?????????????????????????????? | | ??????????????# ##???????????????????????????????? | | ?????????###### #????????????????????????????????? | | ?????????# [ #????????????????????????????????? | | ??????####!######????????????????????????????????? | | ??????# #?????????????????????????????????????? | | ??????# ####?????????????????????????????????????? | | ??????# #????????????????????????????????????????? | | ??????# #????????????????????????????????????????? | | ??????#%#????????????????????????????????????????? | | ?#????# #????????????????????????????????????????? | | ## ???# #????????????????????????????????????????? | | # #?## #??????????????####??????????????????????? | | ## ##????????????? #??????????????????????? | | ##????????????# #??????????????????????? | | # ## ##???????????# #??????????????????????? | | #???## #???????????# #??????????????????????? | | ?????## ##????######## ############???????????? | | ###???# ##?????# % @ ????????? | | #??# #??????# """ """ ""????????????? | | ### #####??# "" """ "?????????????? | | #??# """ t< """ "?????????????? | | ###[####* t g ??????????? | | #?#=[ * [=""" "" g""" """ ??????????? | | #?######% """ """ """ """ ""????????????? | | ##?????# """ """ """ """ ??????????????? | | ## #?????# ??????????????? | | #?## ##?????##################???????????????? | | #???###???????????????????????????????????????? | | #??????????????????????????????????????????????? | | ##???????????????????????????????????????????????? | | ?????????????????????????????????????????????????? | | | | | | | | | | | | | | | | | | | | | | | +----------------------------------------------------+ Best States ------------- Heat Dissipation 39 Energy Generation 10 Energy Capacity 250 Matter Stores 300 Matter Capacity 300 Sight Range 16 Terrain Scan Density 10 Evasion (%) 55 Recoil Reduction 2 Item Schematics ----------------- None Robot Schematics ------------------ None Fabricated ------------ Nothing Alien Tech Used ----------------- None Achievements -------------- None Challenges ------------ None Game ------ Seed MatterRelayReplicator Manual? 0 Play Time 00:04:41 Cumulative 360.2 hours Start 2023.05.31 @ 22:54:43 End 2023.05.31 @ 22:58:27 Sessions 1 Manual Loads 0 Difficulty Rogue Special Mode None Game No. 516 Rogue 489 Adventurer 4 Explorer 23 Win Type - Total 19 Types 14/0/2/2/1/0/0/0/0 Lore% 81 Gallery% 93 Achievement% 82 Wizard Run 0 Options --------- ASCII 0 Keyboard 1 Movement Numpad Keybinds 0 Fullscreen 1 Font 18/SmallcapsGlow Map View 76x50 Tactical HUD 1 Map Filters NONE Filters NONE Steam 1 RUN: 9a5a7634-10dd-447d-87a0-01939e59af36